[Event "ETCC Women 2013"]
[Site "Warsaw"]
[Date "2013.11.12"]
[Round "5"]
[White "Collas, Silvia"]
[Black "Abdulla, Khayala"]
[Result "0-1"]
[ECO "A15"]
[WhiteElo "2292"]
[BlackElo "2255"]
[PlyCount "134"]
[EventDate "2013.??.??"]
[EventCountry "POL"]
[WhiteTeam "France"]
[BlackTeam "Azerbaijan"]
[WhiteTeamCountry "FRA"]
[BlackTeamCountry "AZE"]
[TimeControl "40/5400+30:1800+30"]

1. c4 {[%emt 0:00:00]} Nf6 {[%emt 0:00:00]} 2. g3 {[%emt 0:00:04]} e6 {[%emt 0:
00:27]} 3. Bg2 {[%emt 0:00:28]} d5 {[%emt 0:02:44]} 4. Nf3 {[%emt 0:00:54]} b6
{[%emt 0:05:19]} 5. O-O {[%emt 0:02:22]} Bb7 {[%emt 0:01:00]} 6. b3 {[%emt 0:
01:56]} Bd6 {[%emt 0:02:54]} 7. Bb2 {[%emt 0:02:59]} Nbd7 {[%emt 0:00:52]} 8.
Nc3 {[%emt 0:04:21]} O-O {[%emt 0:02:34]} 9. Rc1 {[%emt 0:04:37]} c6 {[%emt 0:
07:22]} 10. d3 {[%emt 0:02:52]} Re8 {[%emt 0:06:00]} 11. Qc2 {[%emt 0:08:16]}
Rc8 {[%emt 0:03:20]} 12. e4 {[%emt 0:08:04]} dxe4 {[%emt 0:07:40]} 13. dxe4 {
[%emt 0:00:05]} e5 {[%emt 0:02:21]} 14. Rcd1 {[%emt 0:01:42]} Qc7 {[%emt 0:01:
33]} 15. Rd2 {[%emt 0:02:48]} Rcd8 {[%emt 0:08:07]} 16. a3 {[%emt 0:01:14]} Nf8
{[%emt 0:04:55]} 17. b4 {[%emt 0:03:07]} Ne6 {[%emt 0:04:28]} 18. Rfd1 {[%emt
0:00:47]} Qb8 {[%emt 0:03:16]} 19. Qb3 {[%emt 0:13:19]} c5 {[%emt 0:10:52]} 20.
Nd5 {[%emt 0:05:37]} Nxe4 {[%emt 0:03:46]} 21. Re2 {[%emt 0:00:08]} N6g5 {
[%emt 0:05:05]} 22. Nh4 {[%emt 0:02:19]} Nf6 {[%emt 0:04:48]} 23. Nf5 {[%emt 0:
01:17]} Nxd5 {[%emt 0:01:06]} 24. cxd5 {[%emt 0:00:30]} f6 {[%emt 0:01:15]} 25.
Nxd6 {[%emt 0:18:58]} Rxd6 {[%emt 0:00:25]} 26. Rde1 {[%emt 0:02:40]} e4 {
[%emt 0:03:56]} 27. bxc5 {[%emt 0:01:17]} Bxd5 {[%emt 0:01:08]} 28. Qc3 {[%emt
0:02:38]} bxc5 {[%emt 0:00:48]} 29. h4 {[%emt 0:01:27]} Nf7 {[%emt 0:00:50]}
30. Qxc5 {[%emt 0:00:39]} Ne5 {[%emt 0:02:09]} 31. Rd1 {[%emt 0:04:53]} Rc8 {
[%emt 0:00:51]} 32. Qa5 {[%emt 0:00:53]} Qb3 {[%emt 0:01:05]} 33. Bxe5 {[%emt
0:01:32]} Qxd1+ {[%emt 0:02:14]} 34. Re1 {[%emt 0:00:01]} Ra6 {[%emt 0:00:10]}
35. Qxa6 {[%emt 0:01:41]} Qxe1+ {[%emt 0:00:03]} 36. Kh2 {[%emt 0:00:02]} Re8 {
[%emt 0:01:13]} 37. Bd4 {[%emt 0:00:23]} Qd2 {[%emt 0:00:38]} 38. Qxa7 {[%emt
0:00:12]} Bf7 39. a4 {[%emt 0:00:26]} Rd8 {[%emt 0:00:52]} 40. Bb6 {[%emt 0:00:
00]} Re8 {[%emt 0:00:00]} 41. a5 {[%emt 0:00:39]} Qd3 {[%emt 0:05:22]} 42. Qb7
{[%emt 0:03:29]} Bc4 {[%emt 0:01:21]} 43. Qc6 {[%emt 0:00:47]} Bb5 {[%emt 0:00:
33]} 44. Qc5 {[%emt 0:00:57]} Qc4 {[%emt 0:01:41]} 45. Qd6 {[%emt 0:01:09]} Qe6
{[%emt 0:01:28]} 46. Qc5 {[%emt 0:00:29]} Qe5 {[%emt 0:00:28]} 47. Qa3 {[%emt
0:00:45]} Ba6 {[%emt 0:01:00]} 48. Qa4 {[%emt 0:01:23]} Qb5 {[%emt 0:06:18]}
49. Qa3 {[%emt 0:00:55]} Qd3 {[%emt 0:00:32]} 50. Qa4 {[%emt 0:00:21]} Bb5 {
[%emt 0:00:47]} 51. Qb4 {[%emt 0:00:57]} Qe2 {[%emt 0:03:03]} 52. Qd6 {[%emt 0:
00:26]} Qc4 {[%emt 0:01:06]} 53. Qa3 {[%emt 0:00:55]} Ba6 {[%emt 0:01:05]} 54.
Qd6 {[%emt 0:00:07]} Qe6 {[%emt 0:00:23]} 55. Qb4 {[%emt 0:00:17]} f5 {[%emt 0:
00:26]} 56. Be3 {[%emt 0:01:21]} Rd8 {[%emt 0:01:56]} 57. Qb2 {[%emt 0:02:55]}
h6 {[%emt 0:01:56]} 58. Bh3 {[%emt 0:01:09]} Kh7 {[%emt 0:02:45]} 59. Bf4 {
[%emt 0:03:08]} Rd5 {[%emt 0:00:44]} 60. Qc3 {[%emt 0:00:24]} Qd7 {[%emt 0:00:
59]} 61. Bc7 {[%emt 0:02:17]} e3 {[%emt 0:01:25]} 62. fxe3 {[%emt 0:00:56]}
Rd2+ {[%emt 0:00:52]} 63. Kg1 {[%emt 0:00:04]} Ra2 {[%emt 0:00:42]} 64. Qc1 {
[%emt 0:02:53]} Qd5 {[%emt 0:00:52]} 65. Qb1 {[%emt 0:01:02]} Bd3 {[%emt 0:00:
29]} 66. Qd1 {[%emt 0:00:56]} Rb2 {[%emt 0:01:00]} 67. Bf1 {[%emt 0:01:16]} Rb1
{[%emt 0:00:14]} 0-1

[Event "ETCC Women 2013"]
[Site "Warsaw"]
[Date "2013.11.12"]
[Round "5"]
[White "Corke, Anya S"]
[Black "Puuska, Heini"]
[Result "1-0"]
[ECO "B06"]
[WhiteElo "2276"]
[BlackElo "1982"]
[PlyCount "73"]
[EventDate "2013.??.??"]
[EventCountry "POL"]
[WhiteTeam "England"]
[BlackTeam "Finland"]
[WhiteTeamCountry "ENG"]
[BlackTeamCountry "FIN"]
[TimeControl "40/5400+30:1800+30"]

1. d4 {[%emt 0:00:00]} g6 {[%emt 0:00:00]} 2. e4 {[%emt 0:00:00]} Bg7 {[%emt 0:
00:00]} 3. Nc3 {[%emt 0:00:00]} d6 {[%emt 0:00:21]} 4. Be3 {[%emt 0:00:00]} a6
{[%emt 0:01:37]} 5. a4 {[%emt 0:00:20]} Nc6 {[%emt 0:05:51]} 6. f3 {[%emt 0:17:
24]} e5 {[%emt 0:01:23]} 7. d5 {[%emt 0:02:08]} Nce7 {[%emt 0:01:28]} 8. g4 {
[%emt 0:01:45]} f5 {[%emt 0:03:57]} 9. h3 {[%emt 0:00:32]} f4 {[%emt 0:02:30]}
10. Bf2 {[%emt 0:00:44]} h5 {[%emt 0:03:31]} 11. g5 {[%emt 0:03:04]} h4 {[%emt
0:00:26]} 12. Nge2 {[%emt 0:00:54]} c6 {[%emt 0:01:24]} 13. a5 {[%emt 0:10:22]}
cxd5 {[%emt 0:03:05]} 14. Bb6 {[%emt 0:04:08]} Qd7 {[%emt 0:00:08]} 15. Nxd5 {
[%emt 0:02:56]} Nxd5 {[%emt 0:00:14]} 16. Qxd5 {[%emt 0:00:54]} Ne7 {[%emt 0:
01:09]} 17. Qd3 {[%emt 0:08:03]} d5 {[%emt 0:03:33]} 18. Rd1 {[%emt 0:20:20]}
dxe4 {[%emt 0:07:26]} 19. Qxe4 {[%emt 0:04:30]} Qc6 {[%emt 0:04:03]} 20. Nc3 {
[%emt 0:03:39]} Bf5 {[%emt 0:04:01]} 21. Qxc6+ {[%emt 0:00:17]} Nxc6 {[%emt 0:
07:01]} 22. Ne4 {[%emt 0:02:08]} Bxe4 {[%emt 0:00:52]} 23. fxe4 {[%emt 0:00:04]
} Nd4 {[%emt 0:01:20]} 24. Kf2 {[%emt 0:04:15]} Nxc2 {[%emt 0:11:19]} 25. Rd6 {
[%emt 0:03:53]} Rc8 {[%emt 0:01:10]} 26. Rxg6 {[%emt 0:01:05]} Kf7 {[%emt 0:00:
30]} 27. Rd6 {[%emt 0:00:22]} Ke7 {[%emt 0:03:44]} 28. Rd5 {[%emt 0:01:28]} Rc6
{[%emt 0:03:53]} 29. Bc5+ {[%emt 0:03:17]} Kf7 {[%emt 0:06:03]} 30. Bd3 {[%emt
0:00:13]} Rhc8 {[%emt 0:04:11]} 31. b4 {[%emt 0:01:00]} Nd4 {[%emt 0:03:33]}
32. Rd7+ {[%emt 0:00:33]} Kg6 {[%emt 0:00:33]} 33. Bxd4 {[%emt 0:00:22]} exd4 {
[%emt 0:00:53]} 34. e5+ {[%emt 0:00:13]} Kxg5 {[%emt 0:00:28]} 35. Rg1+ {[%emt
0:00:34]} Kh6 {[%emt 0:01:07]} 36. Rdxg7 {[%emt 0:00:40]} Re8 {[%emt 0:00:32]}
37. Rh7# 1-0

[Event "ETCC Women 2013"]
[Site "Warsaw"]
[Date "2013.11.12"]
[Round "5"]
[White "Cosma, Elena-Luminita"]
[Black "Van Weersel, Arlette"]
[Result "1/2-1/2"]
[ECO "A48"]
[WhiteElo "2326"]
[BlackElo "2180"]
[PlyCount "81"]
[EventDate "2013.??.??"]
[EventCountry "POL"]
[WhiteTeam "Romania"]
[BlackTeam "Netherlands"]
[WhiteTeamCountry "ROU"]
[BlackTeamCountry "NED"]
[TimeControl "40/5400+30:1800+30"]

1. d4 {[%emt 0:00:00]} Nf6 {[%emt 0:00:00]} 2. Nf3 {[%emt 0:00:00]} g6 {[%emt
0:00:00]} 3. Nbd2 {[%emt 0:00:00]} d5 {[%emt 0:00:00]} 4. e3 {[%emt 0:00:00]}
Bg7 {[%emt 0:00:00]} 5. b4 {[%emt 0:00:06]} O-O {[%emt 0:01:10]} 6. c4 {[%emt
0:00:19]} c6 {[%emt 0:01:36]} 7. Bb2 {[%emt 0:00:44]} a5 {[%emt 0:06:09]} 8. b5
{[%emt 0:00:26]} dxc4 {[%emt 0:03:26]} 9. Bxc4 {[%emt 0:04:33]} cxb5 {[%emt 0:
03:20]} 10. Bxb5 {[%emt 0:02:34]} Bf5 {[%emt 0:02:40]} 11. O-O {[%emt 0:06:14]}
Na6 {[%emt 0:01:25]} 12. Qe2 {[%emt 0:34:26]} Qb6 {[%emt 0:08:46]} 13. a4 {
[%emt 0:09:02]} Nc7 {[%emt 0:10:36]} 14. Nc4 {[%emt 0:01:12]} Qa7 {[%emt 0:01:
19]} 15. Na3 {[%emt 0:04:01]} Nxb5 {[%emt 0:03:00]} 16. Nxb5 {[%emt 0:00:04]}
Qb6 {[%emt 0:01:42]} 17. Ne5 {[%emt 0:03:20]} Rfc8 {[%emt 0:02:56]} 18. Rfc1 {
[%emt 0:00:50]} Qd8 {[%emt 0:03:18]} 19. h3 {[%emt 0:02:10]} Ne4 {[%emt 0:07:
40]} 20. Nc4 {[%emt 0:09:42]} Rc6 {[%emt 0:10:25]} 21. Ne5 {[%emt 0:07:44]}
Bxe5 {[%emt 0:10:43]} 22. dxe5 {[%emt 0:00:07]} Qd2 {[%emt 0:00:22]} 23. Qxd2 {
[%emt 0:02:06]} Nxd2 {[%emt 0:00:09]} 24. Nd4 {[%emt 0:02:42]} Rxc1+ {[%emt 0:
04:21]} 25. Rxc1 {[%emt 0:00:09]} Bd7 {[%emt 0:00:45]} 26. Rc2 {[%emt 0:03:59]}
Ne4 {[%emt 0:01:04]} 27. Rc7 {[%emt 0:00:31]} Bxa4 {[%emt 0:00:49]} 28. Rxb7 {
[%emt 0:00:24]} e6 {[%emt 0:00:47]} 29. Ba3 {[%emt 0:01:11]} Nd2 {[%emt 0:04:
01]} 30. Bc1 {[%emt 0:02:01]} Nc4 {[%emt 0:02:50]} 31. Rc7 {[%emt 0:00:03]}
Nxe5 {[%emt 0:00:28]} 32. Bd2 {[%emt 0:00:33]} Nd3 {[%emt 0:02:59]} 33. Rc3 {
[%emt 0:00:40]} Ne5 {[%emt 0:01:19]} 34. Rc5 {[%emt 0:00:45]} Nd7 {[%emt 0:01:
57]} 35. Rxa5 {[%emt 0:00:33]} Rxa5 {[%emt 0:00:19]} 36. Bxa5 {[%emt 0:00:04]}
e5 {[%emt 0:00:41]} 37. Nf3 {[%emt 0:00:23]} f6 {[%emt 0:00:26]} 38. Nd2 {
[%emt 0:00:30]} Kf7 {[%emt 0:00:54]} 39. e4 {[%emt 0:00:21]} Nc5 {[%emt 0:01:
02]} 40. f3 {[%emt 0:00:00]} Ke6 {[%emt 0:00:00]} 41. Bc3 {[%emt 0:05:11]}
1/2-1/2

[Event "ETCC Women 2013"]
[Site "Warsaw"]
[Date "2013.11.12"]
[Round "5"]
[White "Danielian, Elina"]
[Black "Dzagnidze, Nana"]
[Result "1-0"]
[ECO "D10"]
[WhiteElo "2457"]
[BlackElo "2556"]
[PlyCount "111"]
[EventDate "2013.??.??"]
[EventCountry "POL"]
[WhiteTeam "Armenia"]
[BlackTeam "Georgia"]
[WhiteTeamCountry "ARM"]
[BlackTeamCountry "GEO"]
[TimeControl "40/5400+30:1800+30"]

1. d4 {[%emt 0:00:00]} d5 {[%emt 0:00:00]} 2. c4 {[%emt 0:00:28]} c6 {[%emt 0:
00:13]} 3. Nc3 {[%emt 0:07:29]} Nf6 {[%emt 0:01:04]} 4. cxd5 {[%emt 0:04:09]}
cxd5 {[%emt 0:00:16]} 5. Bf4 {[%emt 0:00:05]} a6 {[%emt 0:00:21]} 6. e3 {[%emt
0:00:08]} e6 {[%emt 0:08:14]} 7. Bd3 {[%emt 0:01:54]} Bd6 {[%emt 0:00:15]} 8.
Bxd6 {[%emt 0:12:33]} Qxd6 {[%emt 0:00:11]} 9. Nf3 {[%emt 0:00:02]} Nc6 {[%emt
0:00:33]} 10. O-O {[%emt 0:00:32]} O-O {[%emt 0:00:21]} 11. Rc1 {[%emt 0:01:24]
} Bd7 {[%emt 0:01:15]} 12. a3 {[%emt 0:03:24]} Rfd8 {[%emt 0:26:53]} 13. h3 {
[%emt 0:16:45]} Rac8 {[%emt 0:02:58]} 14. Qe2 {[%emt 0:05:03]} Ne8 {[%emt 0:23:
25]} 15. Rfd1 {[%emt 0:23:09]} f5 {[%emt 0:00:56]} 16. Nd2 {[%emt 0:00:13]} Nf6
{[%emt 0:00:14]} 17. Nb3 {[%emt 0:00:31]} Be8 {[%emt 0:08:38]} 18. Nc5 {[%emt
0:01:31]} Rc7 {[%emt 0:01:17]} 19. b4 {[%emt 0:00:24]} Bh5 {[%emt 0:00:13]} 20.
f3 {[%emt 0:00:34]} Ne4 {[%emt 0:04:21]} 21. Qe1 {[%emt 0:03:40]} Nxc5 {[%emt
0:00:35]} 22. bxc5 {[%emt 0:00:03]} Qf8 {[%emt 0:00:34]} 23. Qh4 {[%emt 0:04:
21]} Qf7 {[%emt 0:05:06]} 24. Rd2 {[%emt 0:04:18]} Kh8 {[%emt 0:08:27]} 25. f4
{[%emt 0:00:30]} Bg6 {[%emt 0:01:12]} 26. Rb1 {[%emt 0:00:21]} Qf6 {[%emt 0:00:
15]} 27. Qxf6 {[%emt 0:03:14]} gxf6 {[%emt 0:00:02]} 28. Rb6 {[%emt 0:05:21]}
Rg8 {[%emt 0:01:44]} 29. Rdb2 {[%emt 0:00:19]} Rgg7 {[%emt 0:00:27]} 30. Kf2 {
[%emt 0:01:34]} Bh5 {[%emt 0:02:51]} 31. Na2 {[%emt 0:00:39]} Kg8 {[%emt 0:01:
00]} 32. Nb4 {[%emt 0:00:25]} Be8 {[%emt 0:00:08]} 33. Be2 {[%emt 0:00:50]} Kf8
{[%emt 0:00:34]} 34. Bf3 {[%emt 0:00:28]} Rge7 {[%emt 0:00:50]} 35. g4 {[%emt
0:00:25]} fxg4 {[%emt 0:00:37]} 36. hxg4 {[%emt 0:00:06]} Nxb4 {[%emt 0:00:49]}
37. axb4 {[%emt 0:00:37]} Bc6 {[%emt 0:00:28]} 38. Kg3 {[%emt 0:00:28]} Rg7 {
[%emt 0:00:47]} 39. Rh2 {[%emt 0:00:08]} Rce7 {[%emt 0:00:50]} 40. Be2 {[%emt
0:00:00]} e5 {[%emt 0:00:00]} 41. dxe5 {[%emt 0:00:33]} fxe5 {[%emt 0:00:32]}
42. f5 {[%emt 0:00:07]} Ref7 {[%emt 0:04:45]} 43. Bxa6 {[%emt 0:11:59]} d4 {
[%emt 0:07:08]} 44. exd4 {[%emt 0:19:45]} Rxf5 {[%emt 0:00:19]} 45. Be2 {[%emt
0:00:09]} exd4 {[%emt 0:01:56]} 46. b5 {[%emt 0:01:14]} Be8 {[%emt 0:04:20]}
47. Rxh7 {[%emt 0:00:59]} Rxh7 {[%emt 0:01:28]} 48. gxf5 {[%emt 0:00:03]} Rc7 {
[%emt 0:00:18]} 49. Kf4 {[%emt 0:00:30]} Rxc5 {[%emt 0:10:41]} 50. Rxb7 {[%emt
0:00:05]} Bf7 {[%emt 0:00:04]} 51. b6 {[%emt 0:00:51]} Bd5 {[%emt 0:01:15]} 52.
Rc7 {[%emt 0:01:03]} Rxc7 {[%emt 0:02:03]} 53. bxc7 {[%emt 0:00:01]} Bb7 {
[%emt 0:00:05]} 54. Ke5 {[%emt 0:00:59]} Ke7 {[%emt 0:00:59]} 55. f6+ {[%emt 0:
00:13]} Kd7 {[%emt 0:00:59]} 56. Bb5+ {[%emt 0:00:13]} 1-0

[Event "ETCC Women 2013"]
[Site "Warsaw"]
[Date "2013.11.12"]
[Round "5"]
[White "Daulyte, Deimante"]
[Black "Raeva, Elitsa"]
[Result "0-1"]
[ECO "B01"]
[WhiteElo "2336"]
[BlackElo "2361"]
[PlyCount "126"]
[EventDate "2013.??.??"]
[EventCountry "POL"]
[WhiteTeam "Lithuania"]
[BlackTeam "Bulgaria"]
[WhiteTeamCountry "LTU"]
[BlackTeamCountry "BUL"]
[TimeControl "40/5400+30:1800+30"]

1. e4 {[%emt 0:00:00]} d5 {[%emt 0:00:00]} 2. exd5 {[%emt 0:00:00]} Nf6 {[%emt
0:00:00]} 3. d4 {[%emt 0:00:01]} Nxd5 {[%emt 0:00:12]} 4. c4 {[%emt 0:00:19]}
Nb6 {[%emt 0:00:30]} 5. Nf3 {[%emt 0:00:31]} g6 {[%emt 0:00:38]} 6. a4 {[%emt
0:00:40]} a5 {[%emt 0:01:15]} 7. c5 {[%emt 0:01:11]} Nd5 {[%emt 0:00:53]} 8.
Bc4 {[%emt 0:00:51]} Bg7 {[%emt 0:01:24]} 9. Qb3 {[%emt 0:01:08]} c6 {[%emt 0:
00:34]} 10. Nc3 {[%emt 0:03:10]} O-O {[%emt 0:00:46]} 11. Bg5 {[%emt 0:11:37]}
Nb4 {[%emt 0:26:47]} 12. O-O {[%emt 0:02:57]} Nd7 {[%emt 0:02:38]} 13. Rfe1 {
[%emt 0:18:32]} Nf6 {[%emt 0:00:23]} 14. Ne5 {[%emt 0:04:30]} Nfd5 {[%emt 0:09:
08]} 15. Bh4 {[%emt 0:11:46]} Bf5 {[%emt 0:06:17]} 16. Rac1 {[%emt 0:03:34]}
Bh6 {[%emt 0:12:53]} 17. g4 {[%emt 0:08:38]} Bxc1 {[%emt 0:07:27]} 18. gxf5 {
[%emt 0:00:14]} Bd2 {[%emt 0:02:07]} 19. Re2 {[%emt 0:05:13]} Bh6 {[%emt 0:00:
26]} 20. Bxd5 {[%emt 0:06:47]} cxd5 {[%emt 0:03:27]} 21. Ng4 {[%emt 0:00:25]}
Bg7 {[%emt 0:01:11]} 22. Bxe7 {[%emt 0:02:27]} Qd7 {[%emt 0:00:35]} 23. Bxf8 {
[%emt 0:01:28]} Qxf5 {[%emt 0:02:04]} 24. Nh6+ {[%emt 0:06:55]} Bxh6 {[%emt 0:
00:07]} 25. Bxh6 {[%emt 0:00:03]} Qg4+ {[%emt 0:00:45]} 26. Kh1 {[%emt 0:02:17]
} Qf3+ {[%emt 0:00:36]} 27. Kg1 {[%emt 0:00:05]} Qg4+ {[%emt 0:00:18]} 28. Kh1
{[%emt 0:00:06]} Qh3 {[%emt 0:01:58]} 29. Qd1 {[%emt 0:02:57]} Qxh6 {[%emt 0:
00:04]} 30. Re3 {[%emt 0:03:20]} Qh4 {[%emt 0:03:57]} 31. Kg1 {[%emt 0:00:32]}
Ra6 {[%emt 0:01:38]} 32. Ne2 {[%emt 0:02:52]} Rf6 {[%emt 0:01:03]} 33. f4 {
[%emt 0:00:18]} Qg4+ {[%emt 0:01:00]} 34. Rg3 {[%emt 0:00:04]} Qf5 {[%emt 0:02:
27]} 35. Qd2 {[%emt 0:00:50]} Qb1+ {[%emt 0:02:05]} 36. Kg2 {[%emt 0:00:45]}
Qe4+ {[%emt 0:00:47]} 37. Kg1 {[%emt 0:00:27]} Re6 {[%emt 0:03:03]} 38. Nc3 {
[%emt 0:00:24]} Qe1+ {[%emt 0:02:43]} 39. Qxe1 {[%emt 0:00:05]} Rxe1+ {[%emt 0:
00:05]} 40. Kf2 {[%emt 0:00:00]} Rc1 {[%emt 0:00:00]} 41. Ne2 {[%emt 0:07:08]}
Rc2 {[%emt 0:03:00]} 42. b3 {[%emt 0:00:47]} Rb2 {[%emt 0:01:47]} 43. Ke1 {
[%emt 0:03:59]} Kg7 {[%emt 0:02:35]} 44. Kd1 {[%emt 0:02:32]} Kf6 {[%emt 0:04:
05]} 45. Re3 {[%emt 0:00:31]} Rb1+ {[%emt 0:01:10]} 46. Kd2 {[%emt 0:00:11]}
Rh1 {[%emt 0:00:38]} 47. h3 {[%emt 0:01:24]} Rh2 {[%emt 0:01:32]} 48. Kd1 {
[%emt 0:02:38]} h5 {[%emt 0:01:04]} 49. Nc3 {[%emt 0:02:25]} h4 {[%emt 0:05:06]
} 50. Nb5 {[%emt 0:09:58]} Kf5 {[%emt 0:06:25]} 51. Nd6+ {[%emt 0:01:16]} Kxf4
{[%emt 0:00:23]} 52. Rc3 {[%emt 0:02:11]} f5 {[%emt 0:01:52]} 53. Nxb7 {[%emt
0:00:11]} g5 {[%emt 0:01:11]} 54. Nxa5 {[%emt 0:01:40]} g4 {[%emt 0:00:22]} 55.
hxg4 {[%emt 0:00:26]} fxg4 {[%emt 0:00:06]} 56. c6 {[%emt 0:00:13]} g3 {[%emt
0:01:10]} 57. Ke1 {[%emt 0:01:13]} Rh1+ {[%emt 0:01:44]} 58. Ke2 {[%emt 0:00:
12]} g2 {[%emt 0:00:56]} 59. Rf3+ {[%emt 0:00:56]} Kg5 {[%emt 0:01:00]} 60.
Rf5+ {[%emt 0:01:34]} Kxf5 {[%emt 0:01:13]} 61. c7 {[%emt 0:00:06]} Re1+ {
[%emt 0:01:17]} 62. Kxe1 {[%emt 0:00:53]} g1=Q+ {[%emt 0:00:14]} 63. Ke2 {
[%emt 0:00:02]} Qh2+ {[%emt 0:00:12]} 0-1

[Event "ETCC Women 2013"]
[Site "Warsaw"]
[Date "2013.11.12"]
[Round "5"]
[White "De Seroux, Camille"]
[Black "Sikorova, Olga"]
[Result "0-1"]
[ECO "C07"]
[WhiteElo "2066"]
[BlackElo "2278"]
[PlyCount "108"]
[EventDate "2013.??.??"]
[EventCountry "POL"]
[WhiteTeam "Switzerland"]
[BlackTeam "Czech Republic"]
[WhiteTeamCountry "SUI"]
[BlackTeamCountry "CZE"]
[TimeControl "40/5400+30:1800+30"]

1. e4 {[%emt 0:00:00]} e6 {[%emt 0:00:00]} 2. d4 {[%emt 0:00:00]} d5 {[%emt 0:
00:00]} 3. Nd2 {[%emt 0:00:00]} c5 {[%emt 0:00:00]} 4. exd5 {[%emt 0:00:00]}
Qxd5 {[%emt 0:00:21]} 5. Ngf3 {[%emt 0:00:02]} cxd4 {[%emt 0:00:20]} 6. Bc4 {
[%emt 0:00:12]} Qd6 {[%emt 0:00:12]} 7. O-O {[%emt 0:00:39]} Nf6 {[%emt 0:00:
39]} 8. Nb3 {[%emt 0:00:20]} Nc6 {[%emt 0:00:10]} 9. Nbxd4 {[%emt 0:00:19]}
Nxd4 {[%emt 0:00:08]} 10. Nxd4 {[%emt 0:00:06]} a6 {[%emt 0:00:07]} 11. Re1 {
[%emt 0:00:36]} Qc7 {[%emt 0:01:40]} 12. Bb3 {[%emt 0:07:23]} Bd7 {[%emt 0:01:
43]} 13. Qf3 {[%emt 0:04:09]} Bd6 {[%emt 0:01:42]} 14. h3 {[%emt 0:01:03]}
O-O-O {[%emt 0:00:35]} 15. Bg5 {[%emt 0:01:21]} Qc5 {[%emt 0:01:55]} 16. Qe3 {
[%emt 0:27:23]} h6 {[%emt 0:21:46]} 17. Bh4 {[%emt 0:03:12]} Qc7 {[%emt 0:18:
13]} 18. Rad1 {[%emt 0:03:50]} Bf4 {[%emt 0:04:16]} 19. Qf3 {[%emt 0:05:42]} g5
{[%emt 0:01:48]} 20. Bg3 {[%emt 0:02:09]} e5 {[%emt 0:06:48]} 21. Bxf4 {[%emt
0:07:01]} gxf4 {[%emt 0:00:16]} 22. Ne2 {[%emt 0:01:14]} Bc6 {[%emt 0:03:15]}
23. Qc3 {[%emt 0:04:09]} Rdg8 {[%emt 0:15:01]} 24. f3 {[%emt 0:13:49]} Rg6 {
[%emt 0:04:32]} 25. Kh1 {[%emt 0:12:44]} Rhg8 {[%emt 0:00:08]} 26. Rg1 {[%emt
0:02:02]} e4 {[%emt 0:07:03]} 27. Nd4 {[%emt 0:03:18]} Nh5 {[%emt 0:06:48]} 28.
Nxc6 {[%emt 0:00:36]} Rxc6 {[%emt 0:00:01]} 29. Qe1 {[%emt 0:00:33]} Ng3+ {
[%emt 0:00:52]} 30. Kh2 {[%emt 0:00:04]} e3 {[%emt 0:00:15]} 31. Rd4 {[%emt 0:
00:57]} Rd8 {[%emt 0:02:12]} 32. Qb4 {[%emt 0:00:32]} Rxd4 {[%emt 0:01:39]} 33.
Qxd4 {[%emt 0:00:05]} Ne2 {[%emt 0:00:07]} 34. Qh8+ {[%emt 0:00:29]} Qd8 {
[%emt 0:00:02]} 35. Qxd8+ {[%emt 0:00:38]} Kxd8 {[%emt 0:00:01]} 36. Rd1+ {
[%emt 0:00:47]} Ke7 {[%emt 0:00:17]} 37. c3 {[%emt 0:00:29]} f6 {[%emt 0:02:13]
} 38. Bd5 {[%emt 0:00:28]} Rd6 {[%emt 0:00:40]} 39. c4 {[%emt 0:00:13]} b5 {
[%emt 0:00:12]} 40. c5 {[%emt 0:00:00]} Rxd5 {[%emt 0:00:00]} 41. Rxd5 {[%emt
0:02:29]} Nc3 {[%emt 0:06:42]} 42. Rd4 {[%emt 0:17:23]} e2 {[%emt 0:00:56]} 43.
bxc3 {[%emt 0:01:39]} f5 {[%emt 0:00:12]} 44. c6 {[%emt 0:04:38]} e1=Q {[%emt
0:00:55]} 45. c4 {[%emt 0:00:44]} bxc4 {[%emt 0:24:09]} 46. c7 {[%emt 0:02:24]}
Qg3+ {[%emt 0:00:03]} 47. Kh1 {[%emt 0:01:32]} Qg8 {[%emt 0:00:37]} 48. Rd5 {
[%emt 0:02:47]} c3 {[%emt 0:01:33]} 49. Rc5 {[%emt 0:01:13]} Kd7 {[%emt 0:00:
00]} 50. Rxc3 {[%emt 0:00:13]} Kc8 {[%emt 0:00:01]} 51. Rc2 {[%emt 0:00:46]}
Qd5 {[%emt 0:00:05]} 52. Kh2 {[%emt 0:00:19]} a5 {[%emt 0:00:10]} 53. a3 {
[%emt 0:00:38]} a4 {[%emt 0:01:39]} 54. Rc3 {[%emt 0:00:28]} Qb3 {[%emt 0:00:
10]} 0-1

[Event "ETCC Women 2013"]
[Site "Warsaw"]
[Date "2013.11.12"]
[Round "5"]
[White "Degrande, Marigje"]
[Black "Berke, Ana"]
[Result "1-0"]
[ECO "E00"]
[WhiteElo "1867"]
[BlackElo "2139"]
[PlyCount "95"]
[EventDate "2013.??.??"]
[EventCountry "POL"]
[WhiteTeam "Belgium"]
[BlackTeam "Croatia"]
[WhiteTeamCountry "BEL"]
[BlackTeamCountry "CRO"]
[TimeControl "40/5400+30:1800+30"]

1. d4 {[%emt 0:00:00]} Nf6 {[%emt 0:00:00]} 2. c4 {[%emt 0:00:00]} e6 {[%emt 0:
00:00]} 3. a3 {[%emt 0:00:06]} c5 {[%emt 0:00:00]} 4. e3 {[%emt 0:02:25]} b6 {
[%emt 0:03:06]} 5. Nc3 {[%emt 0:05:44]} Bb7 {[%emt 0:02:22]} 6. Nf3 {[%emt 0:
01:07]} cxd4 {[%emt 0:01:56]} 7. Nxd4 {[%emt 0:11:39]} Be7 {[%emt 0:00:47]} 8.
Nf3 {[%emt 0:01:13]} O-O {[%emt 0:01:21]} 9. Be2 {[%emt 0:01:30]} a6 {[%emt 0:
02:53]} 10. O-O {[%emt 0:03:10]} d6 {[%emt 0:02:17]} 11. Nd2 {[%emt 0:04:43]}
Qc7 {[%emt 0:03:03]} 12. Bf3 {[%emt 0:02:56]} Bxf3 {[%emt 0:01:50]} 13. Qxf3 {
[%emt 0:00:19]} Nbd7 {[%emt 0:02:59]} 14. Qe2 {[%emt 0:10:31]} Rfc8 {[%emt 0:
02:35]} 15. b3 {[%emt 0:02:34]} b5 {[%emt 0:03:12]} 16. Bb2 {[%emt 0:00:55]}
bxc4 {[%emt 0:00:37]} 17. Nxc4 {[%emt 0:01:32]} Rab8 {[%emt 0:15:47]} 18. Nd2 {
[%emt 0:02:25]} a5 {[%emt 0:01:48]} 19. Rfc1 {[%emt 0:04:52]} Qb7 {[%emt 0:03:
48]} 20. Na4 {[%emt 0:05:50]} h6 {[%emt 0:06:15]} 21. h3 {[%emt 0:06:45]} Ne5 {
[%emt 0:06:11]} 22. Bc3 {[%emt 0:04:50]} Qd5 {[%emt 0:03:22]} 23. Rab1 {[%emt
0:04:24]} Nd3 {[%emt 0:16:20]} 24. Rd1 {[%emt 0:01:09]} e5 {[%emt 0:01:12]} 25.
Nc4 {[%emt 0:05:50]} e4 {[%emt 0:01:26]} 26. Nab6 {[%emt 0:01:11]} Qf5 {[%emt
0:01:13]} 27. Nxc8 {[%emt 0:01:10]} Rxc8 {[%emt 0:00:05]} 28. Bxf6 {[%emt 0:01:
54]} Qxf6 {[%emt 0:06:41]} 29. Nxa5 {[%emt 0:00:35]} d5 {[%emt 0:03:16]} 30. b4
{[%emt 0:01:07]} h5 {[%emt 0:02:22]} 31. Nb3 {[%emt 0:04:39]} Bd6 {[%emt 0:01:
17]} 32. Nc1 {[%emt 0:01:17]} Qe5 {[%emt 0:03:44]} 33. g3 {[%emt 0:00:16]} h4 {
[%emt 0:00:29]} 34. Qg4 {[%emt 0:00:37]} Rc2 {[%emt 0:01:33]} 35. Nxd3 {[%emt
0:00:41]} exd3 {[%emt 0:00:08]} 36. Qxh4 {[%emt 0:03:45]} Qf5 {[%emt 0:00:36]}
37. Rf1 {[%emt 0:00:47]} Re2 {[%emt 0:01:16]} 38. Rbd1 {[%emt 0:02:53]} d2 {
[%emt 0:00:23]} 39. Kg2 {[%emt 0:01:31]} g6 {[%emt 0:00:43]} 40. Qd4 {[%emt 0:
00:00]} Qe4+ {[%emt 0:00:00]} 41. Qxe4 {[%emt 0:04:29]} dxe4 {[%emt 0:02:02]}
42. Rh1 {[%emt 0:01:20]} Be5 {[%emt 0:10:03]} 43. Kf1 {[%emt 0:00:27]} Re1+ {
[%emt 0:00:08]} 44. Rxe1 {[%emt 0:00:06]} dxe1=Q+ {[%emt 0:00:11]} 45. Kxe1 {
[%emt 0:00:10]} Bb2 {[%emt 0:00:03]} 46. a4 {[%emt 0:01:14]} Bc3+ {[%emt 0:00:
05]} 47. Ke2 {[%emt 0:00:04]} Bxb4 {[%emt 0:00:05]} 48. Rb1 {[%emt 0:00:21]}
1-0